[Event "*** SCC Grand Prix: Titled Tuesday Blitz"]
[Site "Chess.com"]
[Date "2020.09.29"]
[Round "4"]
[White "Gordima"]
[Black "MVM2008"]
[Result "0-1"]
[WhiteElo "2818"]
[BlackElo "2231"]
[TimeControl "180+1"]
[EndTime "10:39:21 PDT"]
[Termination "MVM2008 won on time"]

1. Nf3 {[%clk 0:03:00]} 1... c5 {[%clk 0:02:58.4]} 2. b3 {[%clk 0:03:00.3]} 2...
b6 {[%clk 0:02:57.4]} 3. Bb2 {[%clk 0:02:59.9]} 3... Bb7 {[%clk 0:02:57.6]} 4.
g3 {[%clk 0:03:00.6]} 4... Nf6 {[%clk 0:02:55.3]} 5. Bg2 {[%clk 0:03:00.9]} 5...
e6 {[%clk 0:02:55.4]} 6. O-O {[%clk 0:03:00.7]} 6... d6 {[%clk 0:02:53.8]} 7. d3
{[%clk 0:03:00.7]} 7... Be7 {[%clk 0:02:53.6]} 8. Nbd2 {[%clk 0:03:01.2]} 8...
Nbd7 {[%clk 0:02:53.5]} 9. e4 {[%clk 0:03:01.7]} 9... O-O {[%clk 0:02:53.4]} 10.
Qe2 {[%clk 0:03:01.5]} 10... a6 {[%clk 0:02:53]} 11. c4 {[%clk 0:02:58.7]} 11...
Qc7 {[%clk 0:02:50.5]} 12. Nh4 {[%clk 0:02:55.7]} 12... b5 {[%clk 0:02:37.2]}
13. f4 {[%clk 0:02:55.4]} 13... Nb6 {[%clk 0:02:29.6]} 14. f5 {[%clk 0:02:53.3]}
14... e5 {[%clk 0:02:24.1]} 15. Ndf3 {[%clk 0:02:48.7]} 15... bxc4 {[%clk
0:02:03.9]} 16. bxc4 {[%clk 0:02:49.6]} 16... Rab8 {[%clk 0:02:00.1]} 17. h3
{[%clk 0:02:49.5]} 17... Na4 {[%clk 0:01:56.8]} 18. Bc1 {[%clk 0:02:49.1]} 18...
Bc6 {[%clk 0:01:46.4]} 19. g4 {[%clk 0:02:48.3]} 19... Nc3 {[%clk 0:01:36.6]}
20. Qe1 {[%clk 0:02:42]} 20... Ncxe4 {[%clk 0:01:18.4]} 21. dxe4 {[%clk
0:02:42.9]} 21... Nxe4 {[%clk 0:01:18.5]} 22. g5 {[%clk 0:02:43.4]} 22... d5
{[%clk 0:01:11.7]} 23. cxd5 {[%clk 0:02:40.6]} 23... Bxd5 {[%clk 0:01:12.6]} 24.
f6 {[%clk 0:02:40.8]} 24... gxf6 {[%clk 0:01:10.6]} 25. gxf6 {[%clk 0:02:38.9]}
25... Bxf6 {[%clk 0:01:09.1]} 26. Bh6 {[%clk 0:02:31.9]} 26... Rfe8 {[%clk
0:00:55.6]} 27. Rd1 {[%clk 0:02:31.2]} 27... Qc6 {[%clk 0:00:52]} 28. Rxd5
{[%clk 0:02:29.1]} 28... Qxd5 {[%clk 0:00:49.1]} 29. Nd2 {[%clk 0:02:29.1]}
29... Qd4+ {[%clk 0:00:38.5]} 30. Be3 {[%clk 0:02:27.7]} 30... Bxh4 {[%clk
0:00:37.6]} 31. Qe2 {[%clk 0:02:16.4]} 31... Ng3 {[%clk 0:00:25.3]} 32. Qf3
{[%clk 0:02:12.3]} 32... Qd7 {[%clk 0:00:22]} 33. Rf2 {[%clk 0:02:06.6]} 33...
e4 {[%clk 0:00:17.9]} 34. Qf4 {[%clk 0:02:02.6]} 34... Qe7 {[%clk 0:00:08.8]}
35. Nc4 {[%clk 0:01:45]} 35... Nh5 {[%clk 0:00:08.4]} 36. Qg4+ {[%clk
0:01:41.5]} 36... Kh8 {[%clk 0:00:07.3]} 37. Qxh5 {[%clk 0:01:40]} 37... Bxf2+
{[%clk 0:00:07.6]} 38. Kxf2 {[%clk 0:01:39.9]} 38... Qf6+ {[%clk 0:00:06.5]} 39.
Kg1 {[%clk 0:01:21.4]} 39... Rb1+ {[%clk 0:00:06.1]} 40. Kh2 {[%clk 0:01:21.9]}
40... Rg8 {[%clk 0:00:06.5]} 41. Qxc5 {[%clk 0:01:12.9]} 41... Rxg2+ {[%clk
0:00:05.3]} 42. Kxg2 {[%clk 0:01:13.4]} 42... Qf3+ {[%clk 0:00:05.5]} 0-1

[Event "*** SCC Grand Prix: Titled Tuesday Blitz"]
[Site "Chess.com"]
[Date "2020.09.29"]
[Round "4"]
[White "Radzio1987"]
[Black "Goryachkina"]
[Result "1/2-1/2"]
[WhiteElo "2838"]
[BlackElo "2643"]
[TimeControl "180+1"]
[EndTime "10:39:22 PDT"]
[Termination "Game drawn by repetition"]

1. c4 {[%clk 0:03:00.9]} 1... e6 {[%clk 0:02:58.3]} 2. Nc3 {[%clk 0:03:00.3]}
2... d5 {[%clk 0:02:58.5]} 3. d4 {[%clk 0:03:00.9]} 3... Nf6 {[%clk 0:02:58.1]}
4. cxd5 {[%clk 0:03:00.3]} 4... exd5 {[%clk 0:02:58.2]} 5. Bg5 {[%clk
0:03:00.4]} 5... c6 {[%clk 0:02:58.1]} 6. e3 {[%clk 0:03:00.3]} 6... h6 {[%clk
0:02:57.7]} 7. Bh4 {[%clk 0:02:59.6]} 7... Be7 {[%clk 0:02:56.3]} 8. Bd3 {[%clk
0:02:59.4]} 8... Nbd7 {[%clk 0:02:49.8]} 9. Nge2 {[%clk 0:02:48.4]} 9... O-O
{[%clk 0:02:48.8]} 10. f3 {[%clk 0:02:44.6]} 10... Re8 {[%clk 0:02:47.5]} 11.
O-O {[%clk 0:02:44.2]} 11... Nf8 {[%clk 0:02:38.6]} 12. Qc2 {[%clk 0:02:38.3]}
12... b6 {[%clk 0:02:01.5]} 13. Rad1 {[%clk 0:02:36.4]} 13... Bb7 {[%clk
0:02:01.1]} 14. h3 {[%clk 0:02:33]} 14... Nh5 {[%clk 0:01:51.5]} 15. Bf2 {[%clk
0:02:30.1]} 15... Bh4 {[%clk 0:01:37.5]} 16. e4 {[%clk 0:02:20.3]} 16... Bxf2+
{[%clk 0:01:32.3]} 17. Rxf2 {[%clk 0:02:21.2]} 17... Ne6 {[%clk 0:01:26.2]} 18.
e5 {[%clk 0:02:14.6]} 18... Qh4 {[%clk 0:01:24.6]} 19. Qd2 {[%clk 0:02:07.2]}
19... Nhf4 {[%clk 0:01:22.5]} 20. Nxf4 {[%clk 0:02:02.2]} 20... Nxf4 {[%clk
0:01:22.3]} 21. Ne2 {[%clk 0:01:55.2]} 21... Nxe2+ {[%clk 0:01:10.2]} 22. Bxe2
{[%clk 0:01:54.4]} 22... c5 {[%clk 0:01:05.8]} 23. f4 {[%clk 0:01:52.9]} 23...
Rac8 {[%clk 0:01:02.5]} 24. Bg4 {[%clk 0:01:37.5]} 24... Rc7 {[%clk 0:00:58.7]}
25. Re1 {[%clk 0:01:33.3]} 25... cxd4 {[%clk 0:00:48.7]} 26. f5 {[%clk
0:01:22.1]} 26... Ba6 {[%clk 0:00:16.6]} 27. e6 {[%clk 0:00:46.6]} 27... fxe6
{[%clk 0:00:16]} 28. fxe6 {[%clk 0:00:46.2]} 28... d3 {[%clk 0:00:15.5]} 29. Rf7
{[%clk 0:00:39.7]} 29... Rc2 {[%clk 0:00:11.5]} 30. Qe3 {[%clk 0:00:34.5]} 30...
d2 {[%clk 0:00:10]} 31. Rd1 {[%clk 0:00:34.7]} 31... Qg5 {[%clk 0:00:06.7]} 32.
Qxg5 {[%clk 0:00:24.2]} 32... hxg5 {[%clk 0:00:07.6]} 33. Kf2 {[%clk 0:00:24.4]}
33... Bc8 {[%clk 0:00:07.3]} 34. Rxa7 {[%clk 0:00:15.9]} 34... Bxe6 {[%clk
0:00:07.2]} 35. Bxe6+ {[%clk 0:00:13.3]} 35... Rxe6 {[%clk 0:00:08.1]} 36. Rd7
{[%clk 0:00:13.4]} 36... Re5 {[%clk 0:00:07.4]} 37. a4 {[%clk 0:00:12.3]} 37...
Rxb2 {[%clk 0:00:07.4]} 38. g3 {[%clk 0:00:12.3]} 38... Kh7 {[%clk 0:00:07.7]}
39. Rd6 {[%clk 0:00:11.6]} 39... Ra2 {[%clk 0:00:06.3]} 40. Rxb6 {[%clk
0:00:10.6]} 40... d4 {[%clk 0:00:05.6]} 41. Rd6 {[%clk 0:00:10]} 41... Re4
{[%clk 0:00:05.9]} 42. a5 {[%clk 0:00:09.3]} 42... Rxa5 {[%clk 0:00:03.5]} 43.
Rxd2 {[%clk 0:00:09.5]} 43... Ra4 {[%clk 0:00:03.2]} 44. Kf3 {[%clk 0:00:09.3]}
44... Re3+ {[%clk 0:00:03.2]} 45. Kf2 {[%clk 0:00:09.4]} 45... Re4 {[%clk
0:00:03.6]} 46. Kf3 {[%clk 0:00:09.5]} 46... Re3+ {[%clk 0:00:04.2]} 47. Kf2
{[%clk 0:00:10]} 47... Re4 {[%clk 0:00:04.7]} 1/2-1/2

[Event "*** SCC Grand Prix: Titled Tuesday Blitz"]
[Site "Chess.com"]
[Date "2020.09.29"]
[Round "4"]
[White "chessfrendz"]
[Black "Harry_Rakkel"]
[Result "1-0"]
[WhiteElo "2340"]
[BlackElo "2569"]
[TimeControl "180+1"]
[EndTime "10:39:22 PDT"]
[Termination "chessfrendz won by checkmate"]

1. d4 {[%clk 0:03:00.9]} 1... Nf6 {[%clk 0:02:57.2]} 2. Nf3 {[%clk 0:02:57.4]}
2... e6 {[%clk 0:02:56.9]} 3. e3 {[%clk 0:02:54.9]} 3... b6 {[%clk 0:02:54.3]}
4. Bd3 {[%clk 0:02:54.2]} 4... Bb7 {[%clk 0:02:53.9]} 5. O-O {[%clk 0:02:55.1]}
5... d5 {[%clk 0:02:52.3]} 6. b3 {[%clk 0:02:54.2]} 6... Nbd7 {[%clk 0:02:51.8]}
7. Bb2 {[%clk 0:02:54]} 7... Be7 {[%clk 0:02:51.4]} 8. Nbd2 {[%clk 0:02:53]}
8... O-O {[%clk 0:02:51.6]} 9. Ne5 {[%clk 0:02:52.8]} 9... c5 {[%clk 0:02:48]}
10. Qf3 {[%clk 0:02:49.7]} 10... Nxe5 {[%clk 0:02:34.3]} 11. dxe5 {[%clk
0:02:48.8]} 11... Nd7 {[%clk 0:02:33]} 12. Qh3 {[%clk 0:02:46.1]} 12... g6
{[%clk 0:02:32.4]} 13. f4 {[%clk 0:02:42.3]} 13... Re8 {[%clk 0:02:25.5]} 14.
Nf3 {[%clk 0:02:38.7]} 14... Qc7 {[%clk 0:02:22.7]} 15. c4 {[%clk 0:02:32.9]}
15... dxc4 {[%clk 0:02:19.1]} 16. bxc4 {[%clk 0:02:26.9]} 16... Rad8 {[%clk
0:02:17.1]} 17. Rad1 {[%clk 0:02:25.2]} 17... Nf8 {[%clk 0:02:11.2]} 18. Qh6
{[%clk 0:02:09.5]} 18... Qc6 {[%clk 0:02:07.7]} 19. Bc2 {[%clk 0:02:03.1]} 19...
a6 {[%clk 0:02:00.3]} 20. Rf2 {[%clk 0:01:48.8]} 20... Rxd1+ {[%clk 0:01:57.4]}
21. Bxd1 {[%clk 0:01:47.6]} 21... Rd8 {[%clk 0:01:57.4]} 22. Bc2 {[%clk
0:01:45.6]} 22... b5 {[%clk 0:01:56.2]} 23. Nd2 {[%clk 0:01:42]} 23... bxc4
{[%clk 0:01:52.6]} 24. Ne4 {[%clk 0:01:40]} 24... Rd1+ {[%clk 0:01:38]} 25. Bxd1
{[%clk 0:01:38.9]} 25... Qxe4 {[%clk 0:01:37.7]} 26. Qh3 {[%clk 0:01:06.3]}
26... Qb1 {[%clk 0:01:14.2]} 27. Qg4 {[%clk 0:01:03.2]} 27... Be4 {[%clk
0:01:10.1]} 28. Qe2 {[%clk 0:00:59.4]} 28... Qxa2 {[%clk 0:01:04.6]} 29. Qd2
{[%clk 0:00:56.3]} 29... Qb1 {[%clk 0:00:49.4]} 30. Qc1 {[%clk 0:00:48.5]} 30...
Qxc1 {[%clk 0:00:39.8]} 31. Bxc1 {[%clk 0:00:47.5]} 31... Nd7 {[%clk 0:00:40.7]}
32. Ra2 {[%clk 0:00:43.9]} 32... Nb6 {[%clk 0:00:36.2]} 33. Rxa6 {[%clk
0:00:37.4]} 33... Nd5 {[%clk 0:00:35.8]} 34. Kf2 {[%clk 0:00:31.1]} 34... c3
{[%clk 0:00:33.4]} 35. Bf3 {[%clk 0:00:28.6]} 35... Bd3 {[%clk 0:00:31.4]} 36.
Ra8+ {[%clk 0:00:25.4]} 36... Kg7 {[%clk 0:00:31]} 37. e4 {[%clk 0:00:22.4]}
37... Nb4 {[%clk 0:00:29.2]} 38. Ke3 {[%clk 0:00:20.2]} 38... c4 {[%clk
0:00:26.7]} 39. Kd4 {[%clk 0:00:20.1]} 39... Nc6+ {[%clk 0:00:25.3]} 40. Kxc3
{[%clk 0:00:19.1]} 40... Bb4+ {[%clk 0:00:25]} 41. Kb2 {[%clk 0:00:16.6]} 41...
Nd4 {[%clk 0:00:19.2]} 42. Rc8 {[%clk 0:00:13.8]} 42... Be1 {[%clk 0:00:13.4]}
43. Be3 {[%clk 0:00:12.9]} 43... Nb5 {[%clk 0:00:12.8]} 44. Bc5 {[%clk
0:00:11.1]} 44... c3+ {[%clk 0:00:12.2]} 45. Kb3 {[%clk 0:00:10.6]} 45... c2
{[%clk 0:00:10]} 46. Bf8+ {[%clk 0:00:09.8]} 46... Kg8 {[%clk 0:00:08.8]} 47.
Bh6# {[%clk 0:00:09.5]} 1-0

[Event "*** SCC Grand Prix: Titled Tuesday Blitz"]
[Site "Chess.com"]
[Date "2020.09.29"]
[Round "4"]
[White "nitpicker"]
[Black "dianamirza"]
[Result "0-1"]
[WhiteElo "2247"]
[BlackElo "1966"]
[TimeControl "180+1"]
[EndTime "10:39:22 PDT"]
[Termination "dianamirza won on time"]

1. d4 {[%clk 0:03:00.9]} 1... Nf6 {[%clk 0:02:57.8]} 2. c4 {[%clk 0:03:00.8]}
2... g6 {[%clk 0:02:57.7]} 3. Nc3 {[%clk 0:03:00.4]} 3... Bg7 {[%clk 0:02:58]}
4. e4 {[%clk 0:03:00.4]} 4... d6 {[%clk 0:02:57.5]} 5. Be2 {[%clk 0:03:00.5]}
5... O-O {[%clk 0:02:57.5]} 6. Nf3 {[%clk 0:02:59.5]} 6... Nc6 {[%clk
0:02:54.3]} 7. d5 {[%clk 0:02:56.1]} 7... Na5 {[%clk 0:02:51.8]} 8. Be3 {[%clk
0:02:23.9]} 8... c5 {[%clk 0:02:42.1]} 9. a3 {[%clk 0:02:16.8]} 9... b6 {[%clk
0:02:36.8]} 10. b4 {[%clk 0:02:07]} 10... Nb7 {[%clk 0:02:33.6]} 11. h3 {[%clk
0:02:00.5]} 11... Ng4 {[%clk 0:02:16.9]} 12. Bd2 {[%clk 0:01:56]} 12... Ne5
{[%clk 0:02:15.7]} 13. Nxe5 {[%clk 0:01:46.9]} 13... Bxe5 {[%clk 0:02:14.4]} 14.
O-O {[%clk 0:01:35.9]} 14... f5 {[%clk 0:02:02.7]} 15. Bd3 {[%clk 0:01:16.6]}
15... f4 {[%clk 0:01:58.2]} 16. Rb1 {[%clk 0:01:12.3]} 16... g5 {[%clk
0:01:55.5]} 17. Be2 {[%clk 0:01:10.1]} 17... Qe8 {[%clk 0:01:49.8]} 18. Bg4
{[%clk 0:01:09.4]} 18... Bxg4 {[%clk 0:01:48.6]} 19. Qxg4 {[%clk 0:01:08.4]}
19... Qg6 {[%clk 0:01:49.5]} 20. h4 {[%clk 0:01:00.9]} 20... h6 {[%clk
0:01:31.8]} 21. Qe6+ {[%clk 0:00:42.1]} 21... Qxe6 {[%clk 0:01:30.8]} 22. dxe6
{[%clk 0:00:43]} 22... gxh4 {[%clk 0:01:24.9]} 23. Nd5 {[%clk 0:00:39.4]} 23...
Nd8 {[%clk 0:01:16.4]} 24. Nxe7+ {[%clk 0:00:36.5]} 24... Kg7 {[%clk 0:01:12.7]}
25. Nf5+ {[%clk 0:00:36.2]} 25... Kf6 {[%clk 0:01:07.4]} 26. e7 {[%clk 0:00:36]}
26... Rg8 {[%clk 0:01:03.1]} 27. exd8=Q+ {[%clk 0:00:34.8]} 27... Raxd8 {[%clk
0:01:04]} 28. Nxh4 {[%clk 0:00:30.7]} 28... Rg4 {[%clk 0:01:01.5]} 29. Nf5
{[%clk 0:00:25.2]} 29... h5 {[%clk 0:00:57.6]} 30. Nh6 {[%clk 0:00:24.5]} 30...
Rg6 {[%clk 0:00:55.7]} 31. Nf5 {[%clk 0:00:24.1]} 31... Rdg8 {[%clk 0:00:51.5]}
32. g3 {[%clk 0:00:23.5]} 32... fxg3 {[%clk 0:00:50]} 33. fxg3 {[%clk
0:00:23.5]} 33... Ke6 {[%clk 0:00:45.6]} 34. Kf2 {[%clk 0:00:20.4]} 34... h4
{[%clk 0:00:38.3]} 35. gxh4 {[%clk 0:00:17.5]} 35... Rg2+ {[%clk 0:00:38.1]} 36.
Ke1 {[%clk 0:00:17.7]} 36... Rh2 {[%clk 0:00:33.3]} 37. Bf4 {[%clk 0:00:16.2]}
37... Bxf4 {[%clk 0:00:32.7]} 38. Rxf4 {[%clk 0:00:16.1]} 38... Rg1+ {[%clk
0:00:24.3]} 39. Rf1 {[%clk 0:00:11.5]} 39... Rxf1+ {[%clk 0:00:24.3]} 40. Kxf1
{[%clk 0:00:12.1]} 40... Rh1+ {[%clk 0:00:24.8]} 41. Ke2 {[%clk 0:00:12]} 41...
Rxb1 {[%clk 0:00:25.7]} 42. bxc5 {[%clk 0:00:09.8]} 42... dxc5 {[%clk
0:00:23.9]} 43. h5 {[%clk 0:00:09.9]} 43... Kf6 {[%clk 0:00:21.9]} 44. h6 {[%clk
0:00:09.5]} 44... Kg6 {[%clk 0:00:19.5]} 45. Ke3 {[%clk 0:00:09.2]} 45... Rb3+
{[%clk 0:00:19.5]} 46. Kf4 {[%clk 0:00:09.6]} 46... Rxa3 {[%clk 0:00:20.4]} 47.
Ke5 {[%clk 0:00:06]} 47... Rh3 {[%clk 0:00:17.8]} 48. Kd6 {[%clk 0:00:02.9]}
48... a5 {[%clk 0:00:17.7]} 49. Ne7+ {[%clk 0:00:02.9]} 49... Kxh6 {[%clk
0:00:16.5]} 50. e5 {[%clk 0:00:03]} 50... a4 {[%clk 0:00:16.6]} 51. Nd5 {[%clk
0:00:02.3]} 51... a3 {[%clk 0:00:16.4]} 0-1

[Event "*** SCC Grand Prix: Titled Tuesday Blitz"]
[Site "Chess.com"]
[Date "2020.09.29"]
[Round "4"]
[White "liczner"]
[Black "mortngabriel"]
[Result "1-0"]
[WhiteElo "2672"]
[BlackElo "2462"]
[TimeControl "180+1"]
[EndTime "10:39:23 PDT"]
[Termination "liczner won by resignation"]

1. e4 {[%clk 0:03:00.9]} 1... c5 {[%clk 0:02:56.7]} 2. Nf3 {[%clk 0:03:01]} 2...
e6 {[%clk 0:02:54.3]} 3. d4 {[%clk 0:03:01]} 3... cxd4 {[%clk 0:02:55.2]} 4.
Nxd4 {[%clk 0:03:01.9]} 4... Nf6 {[%clk 0:02:54.8]} 5. Nc3 {[%clk 0:03:01.6]}
5... Bb4 {[%clk 0:02:55.4]} 6. e5 {[%clk 0:02:58.5]} 6... Nd5 {[%clk 0:02:55.6]}
7. Bd2 {[%clk 0:02:57.7]} 7... Bxc3 {[%clk 0:02:55.1]} 8. bxc3 {[%clk
0:02:56.8]} 8... O-O {[%clk 0:02:56]} 9. Bd3 {[%clk 0:02:54.7]} 9... d6 {[%clk
0:02:56.3]} 10. exd6 {[%clk 0:02:32.2]} 10... Qxd6 {[%clk 0:02:57]} 11. O-O
{[%clk 0:02:29.4]} 11... e5 {[%clk 0:02:56.9]} 12. Nf5 {[%clk 0:02:22.3]} 12...
Bxf5 {[%clk 0:02:48.9]} 13. Bxf5 {[%clk 0:02:23.2]} 13... Nd7 {[%clk 0:02:24.7]}
14. c4 {[%clk 0:02:11.5]} 14... N5f6 {[%clk 0:02:20.8]} 15. Rb1 {[%clk
0:02:05.4]} 15... b6 {[%clk 0:02:20]} 16. Bb4 {[%clk 0:02:01.5]} 16... Qxd1
{[%clk 0:02:17.4]} 17. Rfxd1 {[%clk 0:02:02.4]} 17... Rfd8 {[%clk 0:02:14.5]}
18. Rd6 {[%clk 0:01:27]} 18... g6 {[%clk 0:01:55.1]} 19. Bxd7 {[%clk 0:01:25.7]}
19... Nxd7 {[%clk 0:01:32.2]} 20. Rbd1 {[%clk 0:01:24.9]} 20... a5 {[%clk
0:01:33.1]} 21. Ba3 {[%clk 0:01:13.5]} 21... Ra7 {[%clk 0:01:30.4]} 22. Kf1
{[%clk 0:00:55.9]} 22... f6 {[%clk 0:01:28.9]} 23. c5 {[%clk 0:00:49.1]} 23...
bxc5 {[%clk 0:01:17]} 24. Bxc5 {[%clk 0:00:48.5]} 24... Nxc5 {[%clk 0:01:17.9]}
25. Rxd8+ {[%clk 0:00:48.3]} 25... Kf7 {[%clk 0:01:18.2]} 26. Rc8 {[%clk
0:00:39.8]} 26... Ne6 {[%clk 0:01:11.3]} 27. a4 {[%clk 0:00:37]} 27... h5 {[%clk
0:01:09.6]} 28. Rd5 {[%clk 0:00:35.2]} 28... h4 {[%clk 0:00:57.5]} 29. g3 {[%clk
0:00:30.6]} 29... h3 {[%clk 0:00:54.8]} 30. Rh8 {[%clk 0:00:30.2]} 30... Ng5
{[%clk 0:00:50.9]} 31. f4 {[%clk 0:00:22.5]} 31... Ke6 {[%clk 0:00:46]} 32. Rb5
{[%clk 0:00:18.5]} 32... exf4 {[%clk 0:00:38.9]} 33. gxf4 {[%clk 0:00:19.4]}
33... Ne4 {[%clk 0:00:37.8]} 34. Re8+ {[%clk 0:00:12.6]} 34... Re7 {[%clk
0:00:36.4]} 35. Rxe7+ {[%clk 0:00:13]} 35... Kxe7 {[%clk 0:00:37.3]} 36. Rxa5
{[%clk 0:00:12.1]} 36... Ke6 {[%clk 0:00:36.7]} 37. Rb5 {[%clk 0:00:09.5]} 37...
Nc3 {[%clk 0:00:34.4]} 38. Rb6+ {[%clk 0:00:09.1]} 38... Kf5 {[%clk 0:00:33.7]}
39. a5 {[%clk 0:00:09.6]} 39... Nd5 {[%clk 0:00:33.4]} 40. Rb5 {[%clk
0:00:09.2]} 40... Ke4 {[%clk 0:00:33.3]} 41. a6 {[%clk 0:00:08.5]} 41... Nc7
{[%clk 0:00:31.5]} 42. Rb4+ {[%clk 0:00:07.9]} 42... Kf3 {[%clk 0:00:29.3]} 43.
a7 {[%clk 0:00:08.8]} 43... g5 {[%clk 0:00:26.9]} 44. Rc4 {[%clk 0:00:08.1]}
44... Na8 {[%clk 0:00:26.3]} 45. Rc8 {[%clk 0:00:08.4]} 45... g4 {[%clk
0:00:24.9]} 46. Rxa8 {[%clk 0:00:08.1]} 46... g3 {[%clk 0:00:25.1]} 47. hxg3
{[%clk 0:00:08.2]} 47... h2 {[%clk 0:00:25.2]} 48. Rh8 {[%clk 0:00:08.7]} 48...
f5 {[%clk 0:00:26.1]} 49. a8=Q+ {[%clk 0:00:08.5]} 49... Kxg3 {[%clk 0:00:25.4]}
50. Qg2+ {[%clk 0:00:06.6]} 1-0

[Event "*** SCC Grand Prix: Titled Tuesday Blitz"]
[Site "Chess.com"]
[Date "2020.09.29"]
[Round "4"]
[White "SophieNikoladze"]
[Black "Joshukid"]
[Result "1/2-1/2"]
[WhiteElo "2296"]
[BlackElo "2575"]
[TimeControl "180+1"]
[EndTime "10:39:25 PDT"]
[Termination "Game drawn by repetition"]

1. d4 {[%clk 0:03:00.9]} 1... Nf6 {[%clk 0:02:57.2]} 2. Nf3 {[%clk 0:02:59.7]}
2... e6 {[%clk 0:02:53.9]} 3. e3 {[%clk 0:02:59.9]} 3... b6 {[%clk 0:02:53.3]}
4. Bd3 {[%clk 0:02:59.6]} 4... Bb7 {[%clk 0:02:53.9]} 5. O-O {[%clk 0:02:59.7]}
5... Be7 {[%clk 0:02:54.2]} 6. c4 {[%clk 0:02:59.5]} 6... O-O {[%clk 0:02:52.9]}
7. Nc3 {[%clk 0:02:59.6]} 7... c5 {[%clk 0:02:46.1]} 8. d5 {[%clk 0:02:56.7]}
8... exd5 {[%clk 0:02:47]} 9. cxd5 {[%clk 0:02:56.4]} 9... d6 {[%clk 0:02:45.8]}
10. e4 {[%clk 0:02:55.5]} 10... Re8 {[%clk 0:02:41]} 11. a4 {[%clk 0:02:55.1]}
11... Na6 {[%clk 0:02:36]} 12. Re1 {[%clk 0:02:51.6]} 12... Nb4 {[%clk
0:02:34.2]} 13. Bb1 {[%clk 0:02:51.1]} 13... a6 {[%clk 0:02:23.1]} 14. Ne2
{[%clk 0:02:45.6]} 14... Bf8 {[%clk 0:02:16]} 15. Ng3 {[%clk 0:02:45.5]} 15...
g6 {[%clk 0:02:14.4]} 16. Bg5 {[%clk 0:02:43.7]} 16... h6 {[%clk 0:02:10.5]} 17.
Bd2 {[%clk 0:02:39.2]} 17... a5 {[%clk 0:01:57.6]} 18. Qc1 {[%clk 0:02:26.8]}
18... Kh7 {[%clk 0:01:39]} 19. Ra3 {[%clk 0:02:20.4]} 19... Bg7 {[%clk
0:01:36.8]} 20. Nh4 {[%clk 0:02:16.9]} 20... Nfxd5 {[%clk 0:01:27.7]} 21. Nxg6
{[%clk 0:02:15.9]} 21... fxg6 {[%clk 0:01:27.3]} 22. Nf1 {[%clk 0:02:04.6]}
22... Nf6 {[%clk 0:01:20.4]} 23. Rh3 {[%clk 0:01:54.8]} 23... Ng8 {[%clk
0:01:05.6]} 24. f4 {[%clk 0:01:43.1]} 24... Qf6 {[%clk 0:00:59.9]} 25. f5 {[%clk
0:01:33.8]} 25... gxf5 {[%clk 0:00:44.2]} 26. Bc3 {[%clk 0:01:18.8]} 26... Qf7
{[%clk 0:00:28.4]} 27. exf5 {[%clk 0:01:18.1]} 27... Nf6 {[%clk 0:00:23]} 28.
Ne3 {[%clk 0:01:07.2]} 28... Nbd5 {[%clk 0:00:20.4]} 29. Ba2 {[%clk 0:01:02.2]}
29... Re7 {[%clk 0:00:13.7]} 30. Bxf6 {[%clk 0:00:59.7]} 30... Qxf6 {[%clk
0:00:11.1]} 31. Bxd5 {[%clk 0:00:36.8]} 31... Bxd5 {[%clk 0:00:10.9]} 32. Nxd5
{[%clk 0:00:35]} 32... Qd4+ {[%clk 0:00:10.8]} 33. Ne3 {[%clk 0:00:33.7]} 33...
Rae8 {[%clk 0:00:10.3]} 34. Kf1 {[%clk 0:00:20.5]} 34... Bf6 {[%clk 0:00:08.6]}
35. Re2 {[%clk 0:00:18.4]} 35... Bg5 {[%clk 0:00:08.6]} 36. Kf2 {[%clk
0:00:16.9]} 36... Qf4+ {[%clk 0:00:06.9]} 37. Rf3 {[%clk 0:00:16.8]} 37... Rxe3
{[%clk 0:00:07.8]} 38. Rxe3 {[%clk 0:00:16.5]} 38... Qxe3+ {[%clk 0:00:06.8]}
39. Rxe3 {[%clk 0:00:16.1]} 39... Bxe3+ {[%clk 0:00:07.7]} 40. Qxe3 {[%clk
0:00:16.1]} 40... Rxe3 {[%clk 0:00:08.6]} 41. Kxe3 {[%clk 0:00:16.4]} 41... d5
{[%clk 0:00:08.5]} 42. Kf4 {[%clk 0:00:15.9]} 42... Kg7 {[%clk 0:00:07]} 43. g4
{[%clk 0:00:16]} 43... Kf6 {[%clk 0:00:06.9]} 44. h4 {[%clk 0:00:16.5]} 44... d4
{[%clk 0:00:06.9]} 45. g5+ {[%clk 0:00:16.9]} 45... hxg5+ {[%clk 0:00:07.8]} 46.
hxg5+ {[%clk 0:00:16.8]} 46... Kf7 {[%clk 0:00:08.7]} 47. Ke4 {[%clk 0:00:17]}
47... Ke7 {[%clk 0:00:08.6]} 48. f6+ {[%clk 0:00:15.6]} 48... Ke6 {[%clk
0:00:08.4]} 49. Kf4 {[%clk 0:00:15.1]} 49... c4 {[%clk 0:00:09]} 50. Ke4 {[%clk
0:00:15.1]} 50... d3 {[%clk 0:00:08.4]} 51. Ke3 {[%clk 0:00:15.3]} 51... Kf7
{[%clk 0:00:08.8]} 52. Kd2 {[%clk 0:00:15.5]} 52... Kg6 {[%clk 0:00:09.4]} 53.
Kc3 {[%clk 0:00:15.5]} 53... Kf7 {[%clk 0:00:09.7]} 54. Kd2 {[%clk 0:00:15.8]}
54... Ke6 {[%clk 0:00:10.2]} 55. Kc3 {[%clk 0:00:16.1]} 55... Kf7 {[%clk
0:00:10]} 56. Kd2 {[%clk 0:00:16.3]} 1/2-1/2